[Event "Titled Tuesday Blitz May 25 2021"]
[White "Ambartsumova, Karina"]
[Black "Nazaretyan, Tigran"]
[WhiteFideId "4166299"]
[BlackFideId "24162345"]
[WhiteElo "2518"]
[BlackElo "2670"]
[Result "1/2-1/2"]
[Round "08"]
[TimeControl "180+1"]
[Date "2021.05.25"]
[WhiteClock "0:00:08"]
[BlackClock "0:00:22"]

1. c4 {[%clk 0:03:00]}  Nf6 {[%clk 0:02:58]} 2. Nf3 {[%clk 0:02:59]}  g6 {[%clk 0:02:56]} 3. b3 {[%clk 0:02:59]}  Bg7 {[%clk 0:02:56]} 4. Bb2 {[%clk 0:03:00]}  O-O {[%clk 0:02:56]} 5. g3 {[%clk 0:03:00]}  a5 {[%clk 0:02:55]} 6. Nc3 {[%clk 0:02:56]}  Na6 {[%clk 0:02:49]} 7. Bg2 {[%clk 0:02:53]}  Nc5 {[%clk 0:02:49]} 8. d4 {[%clk 0:02:49]}  Nce4 {[%clk 0:02:47]} 9. Nxe4 {[%clk 0:02:38]}  Nxe4 {[%clk 0:02:46]} 10. Qc2 {[%clk 0:02:39]}  d5 {[%clk 0:02:45]} 11. Nd2 {[%clk 0:02:25]}  Nxd2 {[%clk 0:02:40]} 12. Qxd2 {[%clk 0:02:26]}  dxc4 {[%clk 0:02:38]} 13. bxc4 {[%clk 0:02:25]}  c5 {[%clk 0:02:37]} 14. Rd1 {[%clk 0:02:19]}  cxd4 {[%clk 0:02:33]} 15. Bxd4 {[%clk 0:02:20]}  Be6 {[%clk 0:02:19]} 16. O-O {[%clk 0:01:41]}  Bxd4 {[%clk 0:01:59]} 17. Qxd4 {[%clk 0:01:40]}  Qc7 {[%clk 0:01:57]} 18. Rb1 {[%clk 0:01:10]}  Rab8 {[%clk 0:01:51]} 19. Rfc1 {[%clk 0:01:07]}  Rfd8 {[%clk 0:01:51]} 20. Qb6 {[%clk 0:00:35]}  Qxb6 {[%clk 0:01:48]} 21. Rxb6 {[%clk 0:00:36]}  Rdc8 {[%clk 0:01:34]} 22. c5 {[%clk 0:00:31]}  Bxa2 {[%clk 0:01:33]} 23. Rxb7 {[%clk 0:00:24]}  Rxb7 {[%clk 0:01:24]} 24. Bxb7 {[%clk 0:00:25]}  Rc7 {[%clk 0:01:24]} 25. c6 {[%clk 0:00:25]}  a4 {[%clk 0:01:24]} 26. Rc5 {[%clk 0:00:22]}  f5 {[%clk 0:01:10]} 27. Ra5 {[%clk 0:00:21]}  Bb3 {[%clk 0:01:09]} 28. f3 {[%clk 0:00:17]}  Kf7 {[%clk 0:01:09]} 29. Kf2 {[%clk 0:00:17]}  Ke6 {[%clk 0:01:09]} 30. Ke3 {[%clk 0:00:17]}  Kd6 {[%clk 0:01:09]} 31. Kd4 {[%clk 0:00:17]}  Bd1 {[%clk 0:01:06]} 32. e4 {[%clk 0:00:13]}  Bxf3 {[%clk 0:01:05]} 33. exf5 {[%clk 0:00:12]}  gxf5 {[%clk 0:01:04]} 34. Rxa4 {[%clk 0:00:13]}  Bxc6 {[%clk 0:01:04]} 35. Bxc6 {[%clk 0:00:12]}  Rxc6 {[%clk 0:01:04]} 36. Ke3 {[%clk 0:00:13]}  e5 {[%clk 0:01:04]} 37. Rh4 {[%clk 0:00:13]}  Rc3+ {[%clk 0:01:03]} 38. Kd2 {[%clk 0:00:13]}  Rc7 {[%clk 0:01:03]} 39. Rh6+ {[%clk 0:00:12]}  Kd5 {[%clk 0:01:04]} 40. Rh4 {[%clk 0:00:11]}  Ra7 {[%clk 0:01:00]} 41. Kd3 {[%clk 0:00:10]}  Ra3+ {[%clk 0:01:00]} 42. Kd2 {[%clk 0:00:10]}  Ra7 {[%clk 0:00:56]} 43. Kd3 {[%clk 0:00:11]}  e4+ {[%clk 0:00:56]} 44. Ke3 {[%clk 0:00:11]}  Ra3+ {[%clk 0:00:55]} 45. Ke2 {[%clk 0:00:10]}  Ra7 {[%clk 0:00:52]} 46. Rh6 {[%clk 0:00:07]}  Kd4 {[%clk 0:00:50]} 47. Rd6+ {[%clk 0:00:07]}  Ke5 {[%clk 0:00:50]} 48. Rh6 {[%clk 0:00:08]}  Ra2+ {[%clk 0:00:48]} 49. Ke3 {[%clk 0:00:08]}  Ra3+ {[%clk 0:00:48]} 50. Ke2 {[%clk 0:00:09]}  Kd4 {[%clk 0:00:48]} 51. Rd6+ {[%clk 0:00:08]}  Ke5 {[%clk 0:00:48]} 52. Rh6 {[%clk 0:00:09]}  Ra7 {[%clk 0:00:47]} 53. Ke3 {[%clk 0:00:09]}  Rd7 {[%clk 0:00:46]} 54. Ke2 {[%clk 0:00:08]}  Kd4 {[%clk 0:00:36]} 55. Rh5 {[%clk 0:00:08]}  Rf7 {[%clk 0:00:35]} 56. Rh6 {[%clk 0:00:07]}  Ke5 {[%clk 0:00:32]} 57. Ke3 {[%clk 0:00:05]}  Rc7 {[%clk 0:00:31]} 58. Ke2 {[%clk 0:00:06]}  Rd7 {[%clk 0:00:30]} 59. Ke3 {[%clk 0:00:06]}  Rd3+ {[%clk 0:00:30]} 60. Ke2 {[%clk 0:00:06]}  Rd7 {[%clk 0:00:31]} 61. Ke3 {[%clk 0:00:06]}  Rg7 {[%clk 0:00:30]} 62. Ke2 {[%clk 0:00:06]}  Re7 {[%clk 0:00:28]} 63. Ke3 {[%clk 0:00:07]}  Rd7 {[%clk 0:00:29]} 64. Ke2 {[%clk 0:00:07]}  Kd4 {[%clk 0:00:29]} 65. Rh5 {[%clk 0:00:07]}  Ra7 {[%clk 0:00:28]} 66. Rxf5 {[%clk 0:00:07]}  Ra2+ {[%clk 0:00:28]} 67. Kd1 {[%clk 0:00:07]}  Rxh2 {[%clk 0:00:29]} 68. Rf7 {[%clk 0:00:06]}  Kd3 {[%clk 0:00:29]} 69. Ke1 {[%clk 0:00:05]}  Ke3 {[%clk 0:00:29]} 70. Kf1 {[%clk 0:00:05]}  h5 {[%clk 0:00:28]} 71. Kg1 {[%clk 0:00:04]}  Ra2 {[%clk 0:00:28]} 72. Kf1 {[%clk 0:00:04]}  Ra1+ {[%clk 0:00:27]} 73. Kg2 {[%clk 0:00:05]}  Ke2 {[%clk 0:00:27]} 74. Re7 {[%clk 0:00:05]}  e3 {[%clk 0:00:27]} 75. Re5 {[%clk 0:00:05]}  Kd2 {[%clk 0:00:26]} 76. Rxh5 {[%clk 0:00:06]}  e2 {[%clk 0:00:24]} 77. Rd5+ {[%clk 0:00:06]}  Ke1 {[%clk 0:00:24]} 78. g4 {[%clk 0:00:06]}  Ra2 {[%clk 0:00:25]} 79. g5 {[%clk 0:00:05]}  Rd2 {[%clk 0:00:25]} 80. Re5 {[%clk 0:00:05]}  Kd1 {[%clk 0:00:24]} 81. Kg3 {[%clk 0:00:05]}  e1=Q+ {[%clk 0:00:20]} 82. Rxe1+ {[%clk 0:00:06]}  Kxe1 {[%clk 0:00:20]} 83. Kf4 {[%clk 0:00:06]}  Rf2+ {[%clk 0:00:19]} 84. Ke5 {[%clk 0:00:06]}  Rg2 {[%clk 0:00:19]} 85. Kf6 {[%clk 0:00:06]}  Kd2 {[%clk 0:00:20]} 86. g6 {[%clk 0:00:07]}  Ke3 {[%clk 0:00:20]} 87. g7 {[%clk 0:00:07]}  Ke4 {[%clk 0:00:20]} 88. Kf7 {[%clk 0:00:07]}  Ke5 {[%clk 0:00:21]} 89. g8=Q {[%clk 0:00:07]}  Rxg8 {[%clk 0:00:22]} 90. Kxg8 {[%clk 0:00:08]} 1/2-1/2


[Site "https://www.chess.com"]

[Event "Titled Tuesday Blitz May 25 2021"]
[White "Andreikin, Dmitry"]
[Black "Dobrov, Vladimir"]
[WhiteFideId "4158814"]
[BlackFideId "4136594"]
[WhiteElo "2782"]
[BlackElo "2614"]
[Result "1/2-1/2"]
[Round "08"]
[TimeControl "180+1"]
[Date "2021.05.25"]
[WhiteClock "0:00:15"]
[BlackClock "0:00:28"]

1. e4 {[%clk 0:03:00]}  c5 {[%clk 0:02:58]} 2. Nc3 {[%clk 0:03:00]}  Nc6 {[%clk 0:02:58]} 3. Nge2 {[%clk 0:03:00]}  d6 {[%clk 0:02:49]} 4. d4 {[%clk 0:03:00]}  cxd4 {[%clk 0:02:49]} 5. Nxd4 {[%clk 0:03:01]}  e6 {[%clk 0:02:50]} 6. Be3 {[%clk 0:03:00]}  Nge7 {[%clk 0:02:50]} 7. Nb3 {[%clk 0:02:49]}  a6 {[%clk 0:02:49]} 8. f4 {[%clk 0:02:45]}  Ng6 {[%clk 0:02:47]} 9. Qh5 {[%clk 0:02:38]}  Be7 {[%clk 0:02:46]} 10. O-O-O {[%clk 0:02:37]}  O-O {[%clk 0:02:42]} 11. g4 {[%clk 0:02:31]}  b5 {[%clk 0:02:41]} 12. g5 {[%clk 0:02:30]}  b4 {[%clk 0:02:41]} 13. Na4 {[%clk 0:02:23]}  Rb8 {[%clk 0:02:35]} 14. Rg1 {[%clk 0:02:21]}  Bd7 {[%clk 0:02:14]} 15. Bd3 {[%clk 0:02:07]}  Nce5 {[%clk 0:02:05]} 16. fxe5 {[%clk 0:02:02]}  Bxa4 {[%clk 0:02:06]} 17. exd6 {[%clk 0:01:37]}  Bxd6 {[%clk 0:01:38]} 18. e5 {[%clk 0:01:36]}  Bxe5 {[%clk 0:01:39]} 19. Nc5 {[%clk 0:01:27]}  Qe8 {[%clk 0:01:32]} 20. Rg4 {[%clk 0:01:19]}  Bc6 {[%clk 0:01:27]} 21. Rh4 {[%clk 0:01:15]}  h6 {[%clk 0:01:09]} 22. gxh6 {[%clk 0:01:16]}  Bf3 {[%clk 0:01:03]} 23. Qxf3 {[%clk 0:01:12]}  Nxh4 {[%clk 0:01:04]} 24. Qe4 {[%clk 0:01:03]}  Ng6 {[%clk 0:01:00]} 25. Rg1 {[%clk 0:01:02]}  f5 {[%clk 0:00:56]} 26. Qc4 {[%clk 0:00:54]}  Kh7 {[%clk 0:00:50]} 27. Nxe6 {[%clk 0:00:50]}  Rf6 {[%clk 0:00:37]} 28. Ng5+ {[%clk 0:00:38]}  Kh8 {[%clk 0:00:35]} 29. hxg7+ {[%clk 0:00:33]}  Kxg7 {[%clk 0:00:36]} 30. Nf3 {[%clk 0:00:22]}  Rc8 {[%clk 0:00:36]} 31. Qh4 {[%clk 0:00:17]}  Bxb2+ {[%clk 0:00:31]} 32. Kxb2 {[%clk 0:00:17]}  Qxe3 {[%clk 0:00:32]} 33. Qh5 {[%clk 0:00:15]}  Qh6 {[%clk 0:00:28]} 1/2-1/2


[Site "https://www.chess.com"]

[Event "Titled Tuesday Blitz May 25 2021"]
[White "Aradhya, Garg"]
[Black "Budiarti, Farah Yumna"]
[WhiteFideId "25006746"]
[BlackFideId "7107331"]
[WhiteElo "2650"]
[BlackElo "2522"]
[Result "1-0"]
[Round "08"]
[TimeControl "180+1"]
[Date "2021.05.25"]
[WhiteClock "0:00:57"]
[BlackClock "0:00:07"]

1. d4 {[%clk 0:03:00]}  Nf6 {[%clk 0:03:00]} 2. c4 {[%clk 0:03:00]}  e6 {[%clk 0:02:59]} 3. Nc3 {[%clk 0:03:01]}  d5 {[%clk 0:03:00]} 4. Bg5 {[%clk 0:03:00]}  c6 {[%clk 0:02:54]} 5. e3 {[%clk 0:03:00]}  Nbd7 {[%clk 0:02:54]} 6. Nf3 {[%clk 0:03:00]}  Qa5 {[%clk 0:02:54]} 7. Nd2 {[%clk 0:03:00]}  Bb4 {[%clk 0:02:49]} 8. Qc2 {[%clk 0:02:59]}  Ne4 {[%clk 0:02:47]} 9. Ndxe4 {[%clk 0:02:55]}  dxe4 {[%clk 0:02:48]} 10. Bh4 {[%clk 0:02:55]}  e5 {[%clk 0:02:39]} 11. Be2 {[%clk 0:02:55]}  exd4 {[%clk 0:02:31]} 12. Qxe4+ {[%clk 0:02:55]}  Ne5 {[%clk 0:02:20]} 13. Qxd4 {[%clk 0:02:50]}  Bxc3+ {[%clk 0:02:20]} 14. Qxc3 {[%clk 0:02:50]}  Qxc3+ {[%clk 0:02:19]} 15. bxc3 {[%clk 0:02:51]}  Be6 {[%clk 0:02:10]} 16. c5 {[%clk 0:02:41]}  Nd7 {[%clk 0:02:06]} 17. O-O-O {[%clk 0:02:35]}  Nxc5 {[%clk 0:02:05]} 18. Kb2 {[%clk 0:02:34]}  f6 {[%clk 0:01:54]} 19. f3 {[%clk 0:02:27]}  Ke7 {[%clk 0:01:53]} 20. e4 {[%clk 0:02:24]}  a5 {[%clk 0:01:41]} 21. Bf2 {[%clk 0:02:24]}  Na4+ {[%clk 0:01:37]} 22. Kc2 {[%clk 0:02:23]}  b5 {[%clk 0:01:36]} 23. a3 {[%clk 0:02:23]}  Rhd8 {[%clk 0:01:32]} 24. h4 {[%clk 0:02:21]}  Rdb8 {[%clk 0:01:28]} 25. Rb1 {[%clk 0:02:16]}  Ba2 {[%clk 0:01:27]} 26. Ra1 {[%clk 0:02:14]}  Be6 {[%clk 0:01:23]} 27. h5 {[%clk 0:02:12]}  c5 {[%clk 0:01:08]} 28. h6 {[%clk 0:01:54]}  g6 {[%clk 0:01:02]} 29. Rhb1 {[%clk 0:01:53]}  b4 {[%clk 0:01:01]} 30. axb4 {[%clk 0:01:52]}  axb4 {[%clk 0:00:59]} 31. cxb4 {[%clk 0:01:52]}  cxb4 {[%clk 0:01:00]} 32. Kd2 {[%clk 0:01:42]}  b3 {[%clk 0:00:55]} 33. Bd1 {[%clk 0:01:29]}  Rd8+ {[%clk 0:00:36]} 34. Ke1 {[%clk 0:01:18]}  Nc3 {[%clk 0:00:36]} 35. Rxa8 {[%clk 0:01:17]}  Rxa8 {[%clk 0:00:19]} 36. Rxb3 {[%clk 0:01:16]}  Bxb3 {[%clk 0:00:17]} 37. Bc5+ {[%clk 0:01:16]}  Ke6 {[%clk 0:00:10]} 38. Bxb3+ {[%clk 0:01:16]}  Ke5 {[%clk 0:00:10]} 39. Kd2 {[%clk 0:01:03]}  Rc8 {[%clk 0:00:07]} 40. Bb4 {[%clk 0:00:58]}  Nb1+ {[%clk 0:00:07]} 41. Ke3 {[%clk 0:00:57]}  Rb8 {[%clk 0:00:07]} 42. f4# {[%clk 0:00:57]} 1-0


[Site "https://www.chess.com"]

[Event "Titled Tuesday Blitz May 25 2021"]
[White "Babiy, Olga"]
[Black "Alavkin, Arseny"]
[WhiteFideId "14117258"]
[BlackFideId "4120612"]
[WhiteElo "2213"]
[BlackElo "2414"]
[Result "1/2-1/2"]
[Round "08"]
[TimeControl "180+1"]
[Date "2021.05.25"]
[WhiteClock "0:00:10"]
[BlackClock "0:00:03"]

1. d4 {[%clk 0:03:00]}  Nf6 {[%clk 0:02:59]} 2. Nf3 {[%clk 0:03:01]}  g6 {[%clk 0:02:59]} 3. Nbd2 {[%clk 0:03:00]}  d5 {[%clk 0:02:58]} 4. e3 {[%clk 0:03:00]}  Bg7 {[%clk 0:02:58]} 5. b4 {[%clk 0:03:01]}  O-O {[%clk 0:02:58]} 6. c4 {[%clk 0:03:00]}  c6 {[%clk 0:02:57]} 7. a4 {[%clk 0:02:59]}  h5 {[%clk 0:02:57]} 8. Bd3 {[%clk 0:02:51]}  a5 {[%clk 0:02:49]} 9. b5 {[%clk 0:02:51]}  Nbd7 {[%clk 0:02:50]} 10. Ba3 {[%clk 0:02:46]}  Re8 {[%clk 0:02:46]} 11. cxd5 {[%clk 0:02:30]}  cxd5 {[%clk 0:02:44]} 12. O-O {[%clk 0:02:23]}  Nb6 {[%clk 0:02:36]} 13. Rc1 {[%clk 0:02:20]}  Be6 {[%clk 0:02:24]} 14. h3 {[%clk 0:02:19]}  Rc8 {[%clk 0:02:23]} 15. Ne5 {[%clk 0:02:16]}  Nfd7 {[%clk 0:02:21]} 16. f4 {[%clk 0:02:03]}  Nxe5 {[%clk 0:02:13]} 17. fxe5 {[%clk 0:02:04]}  Rxc1 {[%clk 0:02:04]} 18. Bxc1 {[%clk 0:02:05]}  Nc4 {[%clk 0:01:51]} 19. Qe2 {[%clk 0:01:56]}  Nb6 {[%clk 0:01:49]} 20. Qd1 {[%clk 0:01:40]}  Qc7 {[%clk 0:01:48]} 21. Nf3 {[%clk 0:01:38]}  Bh6 {[%clk 0:01:43]} 22. Re1 {[%clk 0:01:29]}  Rc8 {[%clk 0:01:42]} 23. Ba3 {[%clk 0:01:29]}  Kf8 {[%clk 0:01:00]} 24. Bc5 {[%clk 0:01:27]}  Nd7 {[%clk 0:01:00]} 25. Qe2 {[%clk 0:00:43]}  Nxc5 {[%clk 0:00:54]} 26. Rc1 {[%clk 0:00:43]}  Qb6 {[%clk 0:00:53]} 27. dxc5 {[%clk 0:00:41]}  Rxc5 {[%clk 0:00:54]} 28. Rxc5 {[%clk 0:00:38]}  Qxc5 {[%clk 0:00:55]} 29. Nd4 {[%clk 0:00:39]}  Qc1+ {[%clk 0:00:51]} 30. Kf2 {[%clk 0:00:39]}  Kg7 {[%clk 0:00:44]} 31. Qf3 {[%clk 0:00:20]}  Qd2+ {[%clk 0:00:41]} 32. Be2 {[%clk 0:00:20]}  Bd7 {[%clk 0:00:30]} 33. Qg3 {[%clk 0:00:21]}  Kf8 {[%clk 0:00:17]} 34. e6 {[%clk 0:00:21]}  Bxe6 {[%clk 0:00:15]} 35. Nxe6+ {[%clk 0:00:21]}  fxe6 {[%clk 0:00:16]} 36. Qe5 {[%clk 0:00:22]}  Kf7 {[%clk 0:00:16]} 37. Kf3 {[%clk 0:00:21]}  Bg7 {[%clk 0:00:15]} 38. Qf4+ {[%clk 0:00:20]}  Bf6 {[%clk 0:00:15]} 39. Qh6 {[%clk 0:00:20]}  Qc2 {[%clk 0:00:13]} 40. Qf4 {[%clk 0:00:19]}  Qf5 {[%clk 0:00:13]} 41. g4 {[%clk 0:00:17]}  hxg4+ {[%clk 0:00:12]} 42. hxg4 {[%clk 0:00:18]}  Qe5 {[%clk 0:00:11]} 43. Qh6 {[%clk 0:00:17]}  Bg7 {[%clk 0:00:10]} 44. Qh7 {[%clk 0:00:15]}  Qf6+ {[%clk 0:00:10]} 45. Kg3 {[%clk 0:00:14]}  e5 {[%clk 0:00:10]} 46. Bf3 {[%clk 0:00:14]}  e6 {[%clk 0:00:09]} 47. Qh1 {[%clk 0:00:14]}  e4 {[%clk 0:00:09]} 48. Be2 {[%clk 0:00:14]}  Qe5+ {[%clk 0:00:09]} 49. Kg2 {[%clk 0:00:13]}  Qg5 {[%clk 0:00:09]} 50. Qf1+ {[%clk 0:00:13]}  Ke7 {[%clk 0:00:09]} 51. Qc1 {[%clk 0:00:13]}  Be5 {[%clk 0:00:09]} 52. Qc5+ {[%clk 0:00:12]}  Bd6 {[%clk 0:00:09]} 53. Qb6 {[%clk 0:00:12]}  Qe5 {[%clk 0:00:07]} 54. Qxb7+ {[%clk 0:00:12]}  Kf6 {[%clk 0:00:07]} 55. Qb6 {[%clk 0:00:10]}  Qh2+ {[%clk 0:00:07]} 56. Kf1 {[%clk 0:00:10]}  Bg3 {[%clk 0:00:05]} 57. Qd8+ {[%clk 0:00:10]}  Kg7 {[%clk 0:00:05]} 58. Qe7+ {[%clk 0:00:09]}  Kh6 {[%clk 0:00:06]} 59. Qf8+ {[%clk 0:00:09]}  Kh7 {[%clk 0:00:03]} 60. Qf7+ {[%clk 0:00:08]}  Kh8 {[%clk 0:00:03]} 61. Qf8+ {[%clk 0:00:09]}  Kh7 {[%clk 0:00:04]} 62. Qf7+ {[%clk 0:00:09]}  Kh8 {[%clk 0:00:02]} 63. Qf8+ {[%clk 0:00:10]}  Kh7 {[%clk 0:00:03]} 1/2-1/2


[Site "https://www.chess.com"]

[Event "Titled Tuesday Blitz May 25 2021"]
[White "Bok, Benjamin"]
[Black "Zakhartsov, Vladimir"]
[WhiteFideId "1017063"]
[BlackFideId "4145097"]
[WhiteElo "2674"]
[BlackElo "2462"]
[Result "1-0"]
[Round "08"]
[TimeControl "180+1"]
[Date "2021.05.25"]
[WhiteClock "0:00:11"]
[BlackClock "0:00:01"]

1. d4 {[%clk 0:03:00]}  Nf6 {[%clk 0:02:59]} 2. c4 {[%clk 0:03:01]}  g6 {[%clk 0:02:59]} 3. Nc3 {[%clk 0:03:01]}  d5 {[%clk 0:03:00]} 4. cxd5 {[%clk 0:03:01]}  Nxd5 {[%clk 0:03:01]} 5. e4 {[%clk 0:03:02]}  Nxc3 {[%clk 0:03:01]} 6. bxc3 {[%clk 0:03:03]}  Bg7 {[%clk 0:03:02]} 7. Nf3 {[%clk 0:03:03]}  c5 {[%clk 0:03:02]} 8. Be3 {[%clk 0:03:04]}  Qa5 {[%clk 0:02:59]} 9. Qd2 {[%clk 0:03:04]}  O-O {[%clk 0:02:59]} 10. Rc1 {[%clk 0:03:03]}  Bg4 {[%clk 0:02:55]} 11. d5 {[%clk 0:02:46]}  Bxf3 {[%clk 0:02:53]} 12. gxf3 {[%clk 0:02:46]}  Nd7 {[%clk 0:02:54]} 13. h4 {[%clk 0:02:37]}  h5 {[%clk 0:02:45]} 14. Be2 {[%clk 0:02:28]}  b5 {[%clk 0:02:42]} 15. f4 {[%clk 0:02:15]}  b4 {[%clk 0:02:41]} 16. cxb4 {[%clk 0:02:15]}  cxb4 {[%clk 0:02:40]} 17. Kf1 {[%clk 0:02:03]}  Bc3 {[%clk 0:02:28]} 18. Qd1 {[%clk 0:01:54]}  Qxa2 {[%clk 0:02:24]} 19. Rg1 {[%clk 0:01:51]}  Nf6 {[%clk 0:02:13]} 20. f5 {[%clk 0:01:13]}  Kh7 {[%clk 0:02:06]} 21. Bd3 {[%clk 0:00:55]}  Rg8 {[%clk 0:00:33]} 22. Rg5 {[%clk 0:00:29]}  Ng4 {[%clk 0:00:24]} 23. Rxg4 {[%clk 0:00:17]}  hxg4 {[%clk 0:00:25]} 24. Qxg4 {[%clk 0:00:17]}  Be5 {[%clk 0:00:15]} 25. f4 {[%clk 0:00:16]}  Qb3 {[%clk 0:00:13]} 26. Ke2 {[%clk 0:00:16]}  Bf6 {[%clk 0:00:09]} 27. e5 {[%clk 0:00:15]}  Qxd5 {[%clk 0:00:06]} 28. exf6 {[%clk 0:00:15]}  exf6 {[%clk 0:00:06]} 29. fxg6+ {[%clk 0:00:16]}  fxg6 {[%clk 0:00:04]} 30. Rc7+ {[%clk 0:00:15]}  Kh8 {[%clk 0:00:03]} 31. Bxg6 {[%clk 0:00:15]}  Qa2+ {[%clk 0:00:02]} 32. Kf3 {[%clk 0:00:13]}  Qd5+ {[%clk 0:00:02]} 33. Kf2 {[%clk 0:00:13]}  Rg7 {[%clk 0:00:01]} 34. Rxg7 {[%clk 0:00:12]}  Qa2+ {[%clk 0:00:01]} 35. Kg3 {[%clk 0:00:11]} 1-0


[Site "https://www.chess.com"]

[Event "Titled Tuesday Blitz May 25 2021"]
[White "Bortnyk, Olexandr"]
[Black "Rustemov, Alexander"]
[WhiteFideId "14120828"]
[BlackFideId "4119002"]
[WhiteElo "2723"]
[BlackElo "2707"]
[Result "0-1"]
[Round "08"]
[TimeControl "180+1"]
[Date "2021.05.25"]
[WhiteClock "0:00:05"]
[BlackClock "0:00:17"]

1. d4 {[%clk 0:03:00]}  d5 {[%clk 0:02:59]} 2. Bf4 {[%clk 0:02:59]}  Nf6 {[%clk 0:02:59]} 3. e3 {[%clk 0:02:59]}  e6 {[%clk 0:02:59]} 4. Nf3 {[%clk 0:02:59]}  Bd6 {[%clk 0:02:59]} 5. Ne5 {[%clk 0:03:00]}  O-O {[%clk 0:02:53]} 6. Nd2 {[%clk 0:03:00]}  b6 {[%clk 0:02:53]} 7. c3 {[%clk 0:02:54]}  c5 {[%clk 0:02:52]} 8. Bd3 {[%clk 0:02:53]}  Ba6 {[%clk 0:02:51]} 9. Bc2 {[%clk 0:02:23]}  Qc7 {[%clk 0:02:44]} 10. Qf3 {[%clk 0:02:21]}  Nbd7 {[%clk 0:02:33]} 11. Qg3 {[%clk 0:02:15]}  Nh5 {[%clk 0:02:15]} 12. Bxh7+ {[%clk 0:00:42]}  Kxh7 {[%clk 0:02:15]} 13. Qh3 {[%clk 0:00:43]}  g6 {[%clk 0:02:09]} 14. g4 {[%clk 0:00:43]}  Nxe5 {[%clk 0:01:39]} 15. dxe5 {[%clk 0:00:37]}  Bxe5 {[%clk 0:01:39]} 16. gxh5 {[%clk 0:00:38]}  g5 {[%clk 0:01:37]} 17. Bxg5 {[%clk 0:00:31]}  d4 {[%clk 0:01:28]} 18. c4 {[%clk 0:00:25]}  Bb7 {[%clk 0:01:27]} 19. Rg1 {[%clk 0:00:24]}  Rg8 {[%clk 0:01:19]} 20. O-O-O {[%clk 0:00:24]}  dxe3 {[%clk 0:01:18]} 21. Bxe3 {[%clk 0:00:17]}  Bd4 {[%clk 0:01:08]} 22. Bxd4 {[%clk 0:00:07]}  cxd4 {[%clk 0:01:09]} 23. Qd3+ {[%clk 0:00:07]}  f5 {[%clk 0:01:06]} 24. Rxg8 {[%clk 0:00:04]}  Rxg8 {[%clk 0:01:05]} 25. Qxd4 {[%clk 0:00:05]}  Rg4 {[%clk 0:00:57]} 26. Qf6 {[%clk 0:00:05]}  Qg7 {[%clk 0:00:45]} 27. Qxe6 {[%clk 0:00:05]}  Rf4 {[%clk 0:00:35]} 28. Qg6+ {[%clk 0:00:02]}  Qxg6 {[%clk 0:00:35]} 29. hxg6+ {[%clk 0:00:03]}  Kxg6 {[%clk 0:00:36]} 30. f3 {[%clk 0:00:04]}  Rh4 {[%clk 0:00:31]} 31. Rg1+ {[%clk 0:00:04]}  Kf6 {[%clk 0:00:31]} 32. Rg2 {[%clk 0:00:05]}  Rh3 {[%clk 0:00:30]} 33. Rf2 {[%clk 0:00:04]}  Ke5 {[%clk 0:00:29]} 34. f4+ {[%clk 0:00:05]}  Kd4 {[%clk 0:00:29]} 35. b3 {[%clk 0:00:05]}  Ke3 {[%clk 0:00:29]} 36. Rf1 {[%clk 0:00:03]}  Rxh2 {[%clk 0:00:29]} 37. Re1+ {[%clk 0:00:03]}  Kd3 {[%clk 0:00:30]} 38. Rd1 {[%clk 0:00:02]}  Rf2 {[%clk 0:00:20]} 39. Nb1+ {[%clk 0:00:02]}  Ke3 {[%clk 0:00:20]} 40. Rd7 {[%clk 0:00:03]}  Be4 {[%clk 0:00:19]} 41. Nd2 {[%clk 0:00:04]}  Rxf4 {[%clk 0:00:18]} 42. Nxe4 {[%clk 0:00:03]}  fxe4 {[%clk 0:00:18]} 43. Rxa7 {[%clk 0:00:03]}  Kf2 {[%clk 0:00:18]} 44. Re7 {[%clk 0:00:02]}  e3 {[%clk 0:00:18]} 45. Kd1 {[%clk 0:00:01]}  Rd4+ {[%clk 0:00:18]} 46. Kc2 {[%clk 0:00:02]}  Rd2+ {[%clk 0:00:18]} 47. Kc3 {[%clk 0:00:03]}  Rxa2 {[%clk 0:00:18]} 48. Rf7+ {[%clk 0:00:03]}  Ke1 {[%clk 0:00:18]} 49. Kb4 {[%clk 0:00:03]}  e2 {[%clk 0:00:18]} 50. Kb5 {[%clk 0:00:04]}  Rb2 {[%clk 0:00:18]} 51. b4 {[%clk 0:00:04]}  Kd2 {[%clk 0:00:18]} 52. Rd7+ {[%clk 0:00:03]}  Kc3 {[%clk 0:00:17]} 53. Re7 {[%clk 0:00:04]}  Kd2 {[%clk 0:00:16]} 54. Kxb6 {[%clk 0:00:02]}  Rxb4+ {[%clk 0:00:15]} 55. Kc5 {[%clk 0:00:03]}  Rb3 {[%clk 0:00:15]} 56. Rxe2+ {[%clk 0:00:02]}  Kxe2 {[%clk 0:00:16]} 57. Kd6 {[%clk 0:00:03]}  Rd3+ {[%clk 0:00:15]} 58. Kc6 {[%clk 0:00:03]}  Ke3 {[%clk 0:00:16]} 59. c5 {[%clk 0:00:03]}  Ke4 {[%clk 0:00:16]} 60. Kb7 {[%clk 0:00:04]}  Ke5 {[%clk 0:00:16]} 61. c6 {[%clk 0:00:05]}  Kd6 {[%clk 0:00:17]} 62. c7 {[%clk 0:00:05]}  Rb3+ {[%clk 0:00:17]} 0-1


[Site "https://www.chess.com"]